fUST/lending_fUST_20250626
["ID","MTS","AMOUNT","RATE_DAILY","PERIOD"]
[367709861,1750899043801,-479.91,0.00019726,2]
[367709863,1750899043810,-1617.66,0.00019726,2]
[367709864,1750899043818,-1390.27,0.00019726,2]
[367709867,1750899043828,-506.47,0.00019726,2]
[367709869,1750899043838,-177.794,0.00019741,2]
[367709871,1750899043847,-500.0,0.0001991,2]
[367709873,1750899043856,-500.0,0.00019971,2]
[367709875,1750899043865,-500.0,0.00019971,2]
[367709877,1750899043874,-500.0,0.00019971,2]
[367709879,1750899043883,-500.0,0.00019971,2]
[367709881,1750899043893,-500.0,0.00019971,2]
[367709882,1750899043902,-500.0,0.00019971,2]
[367709884,1750899043911,-500.0,0.00019971,2]
[367709886,1750899043920,-500.0,0.00019971,2]
[367709888,1750899043929,-500.0,0.00019971,2]
[367709891,1750899043939,-500.0,0.00019971,2]
[367709893,1750899043948,-500.0,0.00019971,2]
[367709895,1750899043958,-151.0,0.00019971,2]
[367709897,1750899043966,-151.0,0.00019971,2]
[367709898,1750899043976,-500.0,0.00019993,2]
[367709900,1750899043986,-500.0,0.00019998,2]
[367709902,1750899043995,-500.0,0.00019998,2]
[367709904,1750899044004,-500.0,0.00019998,2]
[367709906,1750899044014,-500.0,0.00019998,2]
[367709909,1750899044025,-500.0,0.00019998,2]
[367709911,1750899044035,-500.0,0.00019998,2]
[367709913,1750899044045,-500.0,0.00019998,2]
[367709915,1750899044055,-500.0,0.00019998,2]
[367709916,1750899044064,-500.0,0.00019998,2]
[367709919,1750899044074,-151.0,0.00019998,2]
[367709921,1750899044083,-151.0,0.00019998,2]
[367709922,1750899044093,-151.0,0.00019999,2]
[367709924,1750899044102,-460.0,0.0002,2]
[367709926,1750899044112,-460.0,0.0002,2]
[367709928,1750899044121,-533.68,0.0002,2]
[367709930,1750899044130,-530.96,0.0002,2]
[367709932,1750899044140,-665.54,0.0002,2]
[367709934,1750899044150,-713.59,0.0002,2]
[367709936,1750899044159,-460.0,0.0002,2]
[367709938,1750899044168,-460.0,0.0002,2]
[367709940,1750899044177,-460.0,0.0002,2]
[367709942,1750899044187,-460.0,0.0002,2]
[367709944,1750899044195,-216.39535518,0.0002,2]
[367709946,1750899044204,-460.0,0.0002,2]
[367709948,1750899044213,-479.91,0.0002,2]
[367709950,1750899044222,-1617.66,0.0002,2]
[367709952,1750899044232,-1390.27,0.0002,2]
[367709954,1750899044242,-506.47,0.0002,2]
[367709956,1750899044251,-6866.0,0.0002,2]
[367709958,1750899044259,-862.66756903,0.00020003,2]
[367709960,1750899044268,-500.0,0.00020026,2]
[367709962,1750899044278,-500.0,0.00020026,2]
[367709964,1750899044287,-500.0,0.00020026,2]
[367709966,1750899044296,-500.0,0.00020026,2]
[367709968,1750899044305,-500.0,0.00020026,2]
[367709970,1750899044314,-500.0,0.00020026,2]
[367709972,1750899044323,-151.0,0.00020026,2]
[367709974,1750899044332,-151.0,0.00020026,2]
[367709976,1750899044341,-151.0,0.00020026,2]
[367709978,1750899044352,-500.0,0.00020033,2]
[367709980,1750899044361,-500.0,0.00020033,2]
[367709983,1750899044370,-427.50860928,0.0002005,2]
[367709985,1750899044379,-500.0,0.00020053,2]
[367709987,1750899044388,-561.55586604,0.00020053,2]
[367709989,1750899044398,-151.0,0.00020053,2]
[367709991,1750899044407,-500.0,0.00020053,2]
[367709993,1750899044416,-500.0,0.00020053,2]
[367709995,1750899044425,-500.0,0.00020053,2]
[367709997,1750899044434,-292.00950483,0.00020053,2]
[367709999,1750899044444,-151.0,0.00020054,2]
[367710001,1750899044453,-500.0,0.00020056,2]
[367710003,1750899044462,-500.0,0.00020056,2]
[367710005,1750899044471,-500.0,0.00020056,2]
[367710007,1750899044480,-500.0,0.00020056,2]
[367710009,1750899044489,-192.4422019,0.00020081,2]
[367710011,1750899044499,-500.0,0.00020153,2]
[367710013,1750899044508,-500.0,0.00020153,2]
[367710015,1750899044518,-500.0,0.00020153,2]
[367710017,1750899044527,-380.54770024,0.00020153,2]
[367710018,1750899044536,-500.0,0.00020153,2]
[367710020,1750899044545,-500.0,0.00020153,2]
[367710022,1750899044554,-500.0,0.00020153,2]
[367710024,1750899044564,-500.0,0.00020153,2]
[367710026,1750899044573,-500.0,0.00020153,2]
[367710029,1750899044584,-500.0,0.00020153,2]
[367710031,1750899044593,-500.0,0.00020153,2]
[367710033,1750899044603,-500.0,0.00020153,2]
[367710035,1750899044612,-500.0,0.00020153,2]
[367710036,1750899044621,-500.0,0.00020153,2]
[367710038,1750899044631,-500.0,0.00020153,2]
[367710041,1750899044641,-500.0,0.00020153,2]
[367710043,1750899044653,-500.0,0.00020153,2]
[367710045,1750899044662,-500.0,0.00020153,2]
[367710047,1750899044671,-500.0,0.00020153,2]
[367710049,1750899044681,-151.0,0.00020163,2]
[367710051,1750899044690,-500.0,0.00020163,2]
[367710053,1750899044700,-151.0,0.00020163,2]
[367710055,1750899044709,-151.0,0.00020163,2]
[367710057,1750899044719,-151.0,0.00020163,2]
[367710058,1750899044728,-151.0,0.00020163,2]
[367710059,1750899044738,-151.0,0.00020163,2]
[367710060,1750899044747,-151.0,0.00020163,2]
[367710061,1750899044756,-183.28015549,0.00020163,2]
[367710062,1750899044765,-500.0,0.00020163,2]
[367710063,1750899044774,-151.0,0.00020163,2]
[367710064,1750899044783,-151.0,0.00020163,2]
[367710065,1750899044792,-500.0,0.00020163,2]
[367710066,1750899044802,-500.0,0.00020182,2]
[367710067,1750899044811,-151.0,0.0002019,2]
[367710068,1750899044820,-500.0,0.0002019,2]
[367710069,1750899044829,-198.0,0.0002019,2]
[367710070,1750899044838,-151.0,0.0002019,2]
[367710071,1750899044847,-151.0,0.0002019,2]
[367710072,1750899044856,-500.0,0.0002019,2]
[367710073,1750899044866,-151.0,0.0002019,2]
[367710074,1750899044875,-151.0,0.0002019,2]
[367710075,1750899044884,-500.0,0.0002019,2]
[367710076,1750899044893,-151.0,0.00020218,2]
[367710077,1750899044903,-500.0,0.00020218,2]
[367710078,1750899044912,-151.0,0.00020218,2]
[367710079,1750899044921,-151.0,0.00020218,2]
[367710080,1750899044930,-500.0,0.00020218,2]
[367710082,1750899044939,-151.0,0.00020218,2]
[367710084,1750899044949,-151.0,0.00020218,2]
[367710086,1750899044958,-500.0,0.00020218,2]
[367710088,1750899044968,-151.0,0.00020245,2]
[367710090,1750899044977,-500.0,0.00020245,2]
[367710092,1750899044986,-151.0,0.00020245,2]
[367710094,1750899044995,-151.0,0.00020245,2]
[367710096,1750899045005,-151.0,0.00020245,2]
[367710098,1750899045014,-151.0,0.00020245,2]
[367710100,1750899045023,-500.0,0.00020245,2]
[367710102,1750899045032,-460.0,0.00020273,2]
[367710104,1750899045042,-460.0,0.00020273,2]
[367710106,1750899045051,-533.68,0.00020273,2]
[367710108,1750899045061,-530.96,0.00020273,2]
[367710110,1750899045070,-665.54,0.00020273,2]
[367710113,1750899045080,-713.59,0.00020273,2]
[367710115,1750899045090,-460.0,0.00020273,2]
[367710117,1750899045099,-460.0,0.00020273,2]
[367710118,1750899045109,-460.0,0.00020273,2]
[367710120,1750899045118,-460.0,0.00020273,2]
[367710122,1750899045127,-460.0,0.00020273,2]
[367710124,1750899045137,-479.91,0.00020273,2]
[367710127,1750899045146,-1617.66,0.00020273,2]
[367710129,1750899045158,-1390.27,0.00020273,2]
[367710131,1750899045167,-506.47,0.00020273,2]
[367710133,1750899045176,-862.66756903,0.00020314,3]
[367710135,1750899045185,-388.0,0.00020419,2]
[367710136,1750899045194,-207.4,0.00020419,2]
[367710139,1750899045204,-5000.0,0.00020419,2]
[367710141,1750899045213,-500.0,0.00020419,2]
[367710143,1750899045223,-500.0,0.00020419,2]
[367710145,1750899045232,-500.0,0.00020419,2]
[367710147,1750899045241,-500.0,0.00020419,2]
[367710149,1750899045249,-646.18962568,0.00020419,2]
[367710150,1750899045259,-500.0,0.00020419,2]
[367710153,1750899045269,-500.0,0.00020419,2]
[367710154,1750899045278,-500.0,0.00020419,2]
[367710156,1750899045287,-500.0,0.00020419,2]
[367710158,1750899045296,-500.0,0.00020419,2]
[367710160,1750899045306,-25000.0,0.00020419,2]
[367710162,1750899045315,-500.0,0.00020419,2]
[367710177,1750899045450,-500.0,0.00020419,2]
[367710179,1750899045461,-500.0,0.00020419,2]
[367710181,1750899045471,-5526.19087151,0.00020419,2]
[367710183,1750899045481,-500.0,0.00020419,2]
[367710185,1750899045491,-500.0,0.00020419,2]
[367710187,1750899045501,-500.0,0.00020419,2]
[367710189,1750899045510,-500.0,0.00020419,2]
[367710191,1750899045520,-500.0,0.00020419,2]
[367710193,1750899045530,-500.0,0.00020419,2]
[367710195,1750899045540,-151.0,0.00020419,2]
[367710197,1750899045550,-787.05797176,0.00020458,2]
[367710200,1750899045561,-402.356,0.00020474,2]
[367710202,1750899045571,-417.243172,0.00020529,2]
[367710204,1750899045581,-965.0,0.00020534,2]
[367710206,1750899045590,-2161.0,0.00020534,2]
[367710208,1750899045600,-654.0,0.00020534,2]
[367710210,1750899045610,-1000.0,0.00020541,2]
[367710212,1750899045620,-500.0,0.00020547,14]
[367710213,1750899045629,-160.52,0.00020547,2]
[367710215,1750899045639,-460.0,0.00020547,2]
[367710218,1750899045649,-533.68,0.00020547,2]
[367710220,1750899045663,-530.96,0.00020547,2]
[367710222,1750899045673,-665.54,0.00020547,2]
[367710224,1750899045683,-713.59,0.00020547,2]
[367710225,1750899045693,-313.62,0.00020547,2]
[367710227,1750899045703,-460.0,0.00020547,2]
[367710229,1750899045713,-460.0,0.00020547,2]
[367710231,1750899045722,-460.0,0.00020547,2]
[367710233,1750899045735,-460.0,0.00020547,2]
[367710235,1750899045745,-479.91,0.00020547,2]
[367710237,1750899045755,-1617.66,0.00020547,2]
[367710240,1750899045764,-1390.27,0.00020547,2]
[367710242,1750899045774,-506.47,0.00020547,2]
[367710243,1750899045783,-289.785,0.00020576,2]
[367710245,1750899045792,-1000.0,0.00020581,2]
[367710247,1750899045801,-1000.0,0.00020581,2]
[367710249,1750899045810,-432.68116936,0.00020584,2]
[367710251,1750899045820,-3910.18,0.000206,2]
[367710253,1750899045829,-249.18800667,0.00020604,2]
[367710255,1750899045841,-1000.0,0.00020604,2]
[367710257,1750899045850,-1000.0,0.00020604,2]
[367710260,1750899045860,-1000.0,0.00020604,2]
[367710261,1750899045869,-862.66756903,0.00020624,3]
[367710264,1750899045879,-448.69037263,0.00020639,2]
[367710265,1750899045889,-465.29191642,0.00020694,2]
[367710268,1750899045899,-179.0,0.00020696,2]
[367710269,1750899045908,-179.0,0.00020701,2]
[367710271,1750899045917,-1000.0,0.00020701,2]
[367710273,1750899045927,-1000.0,0.00020701,2]
[367710275,1750899045936,-1000.0,0.00020701,2]
[367710277,1750899045946,-1000.0,0.00020701,2]
[367710279,1750899045955,-1000.0,0.00020701,2]
[367710281,1750899045964,-1000.0,0.00020701,2]
[367710283,1750899045973,-1000.0,0.00020701,2]
[367710285,1750899045983,-550.64636519,0.00020701,2]
[367710287,1750899045992,-1000.0,0.00020701,2]
[367710289,1750899046001,-1200.0,0.00020701,2]
[367710291,1750899046011,-1000.0,0.00020701,2]
[367710293,1750899046021,-192.76370984,0.00020701,2]
[367710296,1750899046030,-1000.0,0.00020701,2]
[367710297,1750899046040,-340.68014058,0.00020701,2]
[367710299,1750899046049,-1000.0,0.00020701,2]
[367710301,1750899046061,-1000.0,0.00020701,2]
[367710303,1750899046072,-2200.0,0.00020709,2]
[367710305,1750899046081,-507.2504871,0.0002073,2]
[367710307,1750899046091,-482.50771733,0.00020749,2]
[367710309,1750899046100,-179.0,0.00020749,2]
[367710311,1750899046110,-902.13768586,0.00020786,2]
[367710314,1750899046120,-179.0,0.00020798,2]
[367710316,1750899046131,-500.36050287,0.00020804,2]
[367710318,1750899046141,-179.0,0.00020814,2]
[367710320,1750899046150,-460.0,0.00020821,2]
[367710322,1750899046160,-533.68,0.00020821,2]
[367710324,1750899046169,-530.96,0.00020821,2]
[367710326,1750899046178,-665.54,0.00020821,2]
[367710328,1750899046189,-713.59,0.00020821,2]
[367710330,1750899046198,-460.0,0.00020821,2]
[367710332,1750899046207,-460.0,0.00020821,2]
[367710334,1750899046217,-460.0,0.00020821,2]
[367710336,1750899046227,-395.17469492,0.00020821,2]
[367710338,1750899046236,-479.91,0.00020821,2]
[367710340,1750899046246,-1617.66,0.00020821,2]
[367710342,1750899046255,-1390.27,0.00020821,2]
[367710344,1750899046264,-506.47,0.00020821,2]
[367710345,1750899046273,-518.87384147,0.00020859,2]
[367710348,1750899046283,-2894.32539419,0.000209,2]
[367710350,1750899046293,-538.07217361,0.00020914,2]
[367710351,1750899046303,-862.66756903,0.00020934,4]
[367710352,1750899046312,-500.0,0.00020958,15]
[367710353,1750899046321,-5000.0,0.00020967,2]
[367710355,1750899046331,-25000.0,0.00020967,2]
[367710357,1750899046340,-557.98084403,0.00020969,2]
[367710359,1750899046349,-2611.99,0.00021,2]
[367710360,1750899046358,-160.0,0.00021,2]
[367710362,1750899046368,-168.0,0.0002102,2]
[367710365,1750899046378,-578.62613526,0.00021024,2]
[367710367,1750899046388,-600.03530226,0.00021079,2]
[367710369,1750899046397,-823.08314004,0.00021089,2]
[367710371,1750899046407,-460.0,0.00021095,2]
[367710372,1750899046416,-533.68,0.00021095,2]
[367710375,1750899046426,-530.96,0.00021095,2]
[367710376,1750899046435,-665.54,0.00021095,2]
[367710378,1750899046445,-713.59,0.00021095,2]
[367710381,1750899046455,-460.0,0.00021095,2]
[367710382,1750899046465,-460.0,0.00021095,2]
[367710384,1750899046476,-460.0,0.00021095,2]
[367710387,1750899046486,-479.91,0.00021095,2]
[367710389,1750899046496,-1617.66,0.00021095,2]
[367710391,1750899046506,-1390.27,0.00021095,2]
[367710393,1750899046516,-506.47,0.00021095,2]
[367710395,1750899046526,-168.0,0.00021117,2]
[367710397,1750899046535,-501.28542813,0.00021129,2]
[367710399,1750899046545,-1500.0,0.00021129,2]
[367710401,1750899046555,-622.23660845,0.00021134,2]
[367710403,1750899046564,-1500.0,0.00021151,2]
[367710405,1750899046574,-1500.0,0.00021151,2]
[367710407,1750899046584,-679.58554997,0.00021151,2]
[367710409,1750899046594,-645.25936296,0.00021189,2]
[367710411,1750899046603,-179.0,0.00021233,2]
[367710413,1750899046613,-669.13395939,0.00021244,2]
[367710415,1750899046623,-862.66756903,0.00021245,4]
[367710417,1750899046632,-1500.0,0.00021249,2]
[367710419,1750899046642,-1547.30818192,0.00021249,2]
[367710421,1750899046654,-1500.0,0.00021249,2]
[367710422,1750899046663,-1152.62633796,0.00021249,2]
[367710424,1750899046673,-1500.0,0.00021249,2]
[367710427,1750899046683,-1149.49804868,0.00021249,2]
[367710429,1750899046693,-1500.0,0.00021249,2]
[367710431,1750899046702,-1500.0,0.00021249,2]
[367710433,1750899046712,-1500.0,0.00021249,2]
[367710435,1750899046721,-1000.44571026,0.00021249,2]
[367710436,1750899046731,-1500.0,0.00021249,2]
[367710438,1750899046741,-1500.0,0.00021249,2]
[367710440,1750899046752,-427.50860928,0.00021288,2]
[367710443,1750899046762,-693.89191589,0.00021299,2]
[367710445,1750899046772,-168.0,0.00021307,2]
[367710447,1750899046781,-719.56591678,0.00021354,2]
[367710449,1750899046790,-460.0,0.00021369,2]
[367710451,1750899046799,-533.68,0.00021369,2]
[367710453,1750899046809,-530.96,0.00021369,2]
[367710455,1750899046818,-665.54,0.00021369,2]
[367710456,1750899046827,-713.59,0.00021369,2]
[367710458,1750899046836,-460.0,0.00021369,2]
[367710460,1750899046845,-460.0,0.00021369,2]
[367710462,1750899046854,-460.0,0.00021369,2]
[367710464,1750899046864,-479.91,0.00021369,2]
[367710466,1750899046873,-1617.66,0.00021369,2]
[367710469,1750899046882,-1390.27,0.00021369,2]
[367710471,1750899046892,-506.47,0.00021369,2]
[367710473,1750899046901,-823.0,0.00021452,2]
[367710475,1750899046910,-250.0,0.00021454,2]
[367710477,1750899046919,-2000.0,0.000215,2]
[367710479,1750899046929,-3910.18,0.000215,2]
[367710481,1750899046939,-5000.0,0.00021515,2]
[367710483,1750899046948,-25000.0,0.00021515,2]
[367710485,1750899046958,-855.034273,0.00021542,4]
[367710487,1750899046967,-862.66756903,0.00021555,5]
[367710489,1750899046976,-460.0,0.00021643,2]
[367710491,1750899046985,-533.68,0.00021643,2]
[367710493,1750899046994,-530.96,0.00021643,2]
[367710495,1750899047004,-665.54,0.00021643,2]
[367710497,1750899047013,-713.59,0.00021643,2]
[367710498,1750899047022,-460.0,0.00021643,2]
[367710501,1750899047031,-460.0,0.00021643,2]
[367710503,1750899047042,-341.89153296,0.00021643,2]
[367710505,1750899047055,-479.91,0.00021643,2]
[367710507,1750899047065,-1617.66,0.00021643,2]
[367710509,1750899047074,-1390.27,0.00021643,2]
[367710511,1750899047083,-506.47,0.00021643,2]
[367710513,1750899047093,-423.989916,0.00021677,2]
[367710515,1750899047102,-1170.99867956,0.00021677,2]
[367710517,1750899047111,-2000.0,0.00021699,2]
[367710518,1750899047120,-1328.95896525,0.00021699,2]
[367710520,1750899047129,-200.0,0.0002174,3]
[367710522,1750899047138,-215.0738,0.00021788,2]
[367710523,1750899047147,-2000.0,0.00021797,2]
[367710525,1750899047157,-2000.0,0.00021797,2]
[367710527,1750899047166,-1600.75623165,0.00021797,2]
[367710529,1750899047175,-2000.0,0.00021797,2]
[367710530,1750899047184,-2000.0,0.00021797,2]
[367710532,1750899047194,-2000.0,0.00021797,2]
[367710534,1750899047203,-2000.0,0.00021797,2]
[367710536,1750899047212,-2000.0,0.00021797,2]
[367710537,1750899047221,-151.0,0.000218,3]
[367710539,1750899047231,-862.66756903,0.00021866,6]
[367710541,1750899047239,-565.0,0.00021885,2]
[367710542,1750899047249,-902.13768586,0.0002189,2]
[367710544,1750899047258,-2000.0,0.000219,2]
[367710546,1750899047268,-518.56757983,0.00021917,2]
[367710548,1750899047277,-533.68,0.00021917,2]
[367710550,1750899047287,-530.96,0.00021917,2]
[367710552,1750899047296,-665.54,0.00021917,2]
[367710553,1750899047305,-713.59,0.00021917,2]
[367710555,1750899047314,-445.22,0.00021917,2]
[367710557,1750899047324,-460.0,0.00021917,2]
[367710559,1750899047334,-479.91,0.00021917,2]
[367710560,1750899047343,-1617.66,0.00021917,2]
[367710562,1750899047352,-500.0,0.00021917,2]
[367710564,1750899047361,-500.0,0.00021917,2]
[367710566,1750899047370,-551.65556059,0.00021917,2]
[367710567,1750899047379,-1390.27,0.00021917,2]
[367710569,1750899047389,-506.47,0.00021917,2]
[367710571,1750899047397,-155.01070379,0.00021918,2]
[367710572,1750899047406,-187.411932,0.00021918,2]
[367710574,1750899047415,-500.0,0.00021973,2]
[367710576,1750899047425,-500.0,0.00021973,2]
[367710578,1750899047434,-500.0,0.00021973,2]
[367710579,1750899047443,-500.0,0.00021973,2]
[367710581,1750899047453,-500.0,0.00021973,2]
[367710583,1750899047463,-500.0,0.00021973,2]
[367710585,1750899047472,-500.0,0.00021973,2]
[367710587,1750899047481,-500.0,0.00021973,2]
[367710588,1750899047491,-500.0,0.00021973,2]
[367710590,1750899047500,-500.0,0.00021973,2]
[367710592,1750899047510,-500.0,0.00021973,2]
[367710594,1750899047520,-954.69988064,0.00021982,2]
[367710595,1750899047529,-120257.40748045,0.0002199,7]
[367710614,1750899047728,-406.0,0.00020534,2]
[367710615,1750899047738,-8866.90198854,0.0002199,7]
[367710617,1750899047750,-654.43308358,0.0002199,7]
[367710620,1750899047763,-652.05725676,0.0002199,7]
[367710622,1750899047774,-427.00164571,0.0002199,7]
[367710625,1750899047804,515.448359,0.00013699,2]
[367710637,1750899047923,-500.0,0.00020163,2]
[367710639,1750899047933,-515.448359,0.00020187,2]
[367710641,1750899047942,-500.0,0.0002019,2]
[367710642,1750899047951,-500.0,0.00020218,2]
[367710644,1750899047961,-500.0,0.00020245,2]
[367710646,1750899047970,-500.0,0.00020273,2]
[367710648,1750899047979,-396.36504666,0.000203,2]
[367710656,1750899048054,-103.63495334,0.000203,2]
[367710658,1750899048063,-500.0,0.00020327,2]
[367710659,1750899048072,-500.0,0.00020355,2]
[367710661,1750899048082,-260.0,0.00020382,2]
[367710663,1750899048091,-406.0,0.00020534,2]
[367710665,1750899048101,-18948.43,0.00020683,10]
[367710667,1750899048110,-40869.80171089,0.0002199,7]
[367714543,1750899667248,594.4,0.00024658,120]
[367714544,1750900088963,10212.24944253,0.00015687,2]
[367714545,1750900088985,14687.75055747,0.00015687,2]
[367714546,1750900192455,498.187486,0.00013699,2]
[367714582,1750900232382,-29742.8021886,0.00016337,2]
[367714589,1750900232437,-367.89812471,0.00016337,2]
[367714596,1750900232496,-95328.45960141,0.00016337,2]
[367714615,1750900238353,-168.56105261,0.00016336,2]
[367714616,1750900238362,-256.81268204,0.00016336,2]
[367714617,1750900238375,-463.39405833,0.00016336,2]
[367714618,1750900238384,-46084.12648528,0.00016337,2]
[367714619,1750900238394,-267.1928808,0.00016338,2]
[367714620,1750900238403,-357.0,0.00016436,2]
[367714621,1750900238413,-1200.0,0.00016437,2]
[367714622,1750900238423,-300.0,0.00016437,2]
[367714623,1750900238432,-460.0,0.00016438,2]
[367714624,1750900238441,-460.0,0.00016438,2]
[367714625,1750900238450,-460.0,0.00016438,2]
[367714626,1750900238459,-460.0,0.00016438,2]
[367714627,1750900238469,-460.0,0.00016438,2]
[367714628,1750900238478,-460.0,0.00016438,2]
[367714629,1750900238487,-281.02679002,0.00016438,2]
[367714630,1750900238497,-460.0,0.00016438,2]
[367714631,1750900238506,-460.0,0.00016438,2]
[367714632,1750900238516,-460.0,0.00016438,2]
[367714633,1750900238526,-460.0,0.00016438,2]
[367714634,1750900238535,-460.0,0.00016438,2]
[367714635,1750900238545,-460.0,0.00016438,2]
[367714636,1750900238554,-460.0,0.00016438,2]
[367714637,1750900238563,-460.0,0.00016438,2]
[367714638,1750900238572,-461.13512637,0.00016438,2]
[367714639,1750900238582,-460.0,0.00016438,2]
[367714640,1750900238592,-460.0,0.00016438,2]
[367714641,1750900238602,-460.0,0.00016438,2]
[367714642,1750900238611,-460.0,0.00016438,2]
[367714643,1750900238620,-460.0,0.00016438,2]
[367714644,1750900238629,-460.0,0.00016438,2]
[367714645,1750900238639,-460.0,0.00016438,2]
[367714646,1750900238652,-460.0,0.00016438,2]
[367714647,1750900238662,-460.0,0.00016438,2]
[367714648,1750900238671,-460.0,0.00016438,2]
[367714649,1750900238681,-460.0,0.00016438,2]
[367714650,1750900238690,-460.0,0.00016438,2]
[367714651,1750900238700,-460.0,0.00016438,2]
[367714652,1750900238710,-460.0,0.00016438,2]
[367714653,1750900238719,-313.44889633,0.00016438,2]
[367714654,1750900238729,-460.0,0.00016438,2]
[367714655,1750900238738,-460.0,0.00016438,2]
[367714656,1750900238748,-225.36768534,0.00016438,2]
[367714657,1750900238759,-460.0,0.00016438,2]
[367714658,1750900238768,-460.0,0.00016438,2]
[367714659,1750900238777,-500.0,0.00016438,2]
[367714660,1750900238786,-460.0,0.00016438,2]
[367714661,1750900238796,-460.0,0.00016438,2]
[367714662,1750900238805,-460.0,0.00016438,2]
[367714663,1750900238815,-460.0,0.00016438,2]
[367714664,1750900238825,-460.0,0.00016438,2]
[367714665,1750900238834,-460.0,0.00016438,2]
[367714666,1750900238843,-460.0,0.00016438,2]
[367714667,1750900238853,-460.0,0.00016438,2]
[367714668,1750900238862,-460.0,0.00016438,2]
[367714669,1750900238871,-460.0,0.00016438,2]
[367714670,1750900238881,-460.0,0.00016438,2]
[367714671,1750900238890,-460.0,0.00016438,2]
[367714672,1750900238899,-460.0,0.00016438,2]
[367714673,1750900238908,-460.0,0.00016438,2]
[367714674,1750900238918,-577.87335953,0.00016438,2]
[367714675,1750900238928,-460.0,0.00016438,2]
[367714676,1750900238937,-259.12992828,0.00016438,2]
[367714677,1750900238947,-460.0,0.00016438,2]
[367714678,1750900238956,-460.0,0.00016438,2]
[367714679,1750900238965,-460.0,0.00016438,2]
[367714680,1750900238974,-275.59981228,0.00016438,2]
[367714681,1750900238983,-460.0,0.00016438,2]
[367714682,1750900238992,-460.0,0.00016438,2]
[367714683,1750900239001,-519.35,0.00016438,2]
[367714684,1750900239010,-460.0,0.00016438,2]
[367714685,1750900239019,-460.0,0.00016438,2]
[367714686,1750900239028,-460.0,0.00016438,2]
[367714687,1750900239038,-460.0,0.00016438,2]
[367714688,1750900239047,-460.0,0.00016438,2]
[367714689,1750900239057,-460.0,0.00016438,2]
[367714690,1750900239066,-460.0,0.00016438,2]
[367714691,1750900239076,-460.0,0.00016438,2]
[367714692,1750900239085,-460.0,0.00016438,2]
[367714693,1750900239094,-460.0,0.00016438,2]
[367714694,1750900239103,-460.0,0.00016438,2]
[367714695,1750900239112,-460.0,0.00016438,2]
[367714696,1750900239121,-460.0,0.00016438,2]
[367714697,1750900239131,-460.0,0.00016438,2]
[367714698,1750900239141,-460.0,0.00016438,2]
[367714699,1750900239150,-306.76929883,0.00016438,2]
[367714700,1750900239161,-460.0,0.00016438,2]
[367714701,1750900239174,-460.0,0.00016438,2]
[367714702,1750900239182,-521.35,0.00016438,2]
[367714703,1750900239191,-460.0,0.00016438,2]
[367714704,1750900239200,-460.0,0.00016438,2]
[367714705,1750900239209,-460.0,0.00016438,2]
[367714706,1750900239218,-460.0,0.00016438,2]
[367714707,1750900239227,-500.0,0.00016438,2]